Cogmind - Beta 13 @@@ ROGUE MODE // 2024.07.09 @ 14:26:28 Player: ThatBishHoly Result: Destroyed by G-67 Veteran with Plasma Rifle Performance ------------- Evolutions (4) 2000 Regions Visited (8) 1600 Robots Destroyed (58) 290 Value Destroyed (2125) 2125 Prototype IDs (3) 60 Alien Tech Used (0) 0 Bonus (1205) 1205 TOTAL SCORE: 7280 Bonus ------- High Alert Combat Kills 88 Follower Combat Kills 966 Aligned with FarCom 300 Friendly Fire -149 Cogmind --------- Core Integrity 0/850 Matter 270/300 Energy 193/500 System Corruption 4% Temperature Hot (219) Movement Core (450) Ox8 Location -6/Extension Parts ------- > --- POWER (2) -------- (None) > --- PROPULSION (4) --- (None) > --- UTILITY (6) ------ Large Storage Unit Improved Energy Well Enhanced Optical Array Improved Signal Interpreter Graphene Brace > --- WEAPON (3) ------- (None) > --- INVENTORY (15) --- Improved Energy Well (400) Improved Sensor Array Weapon Cycler Medium Reflective Plating AWS/Gauss Remote Datajack Spear Peak State ------------ > --- POWER ------------ Reinforced Deuterium Engine Neutrino Core > --- PROPULSION ------- Flexi-carbon Leg Flexi-carbon Leg Armored Leg Myomer Leg > --- UTILITY ---------- Large Storage Unit Improved Energy Well Enhanced Optical Array Improved Signal Interpreter Graphene Brace Improved Shield Generator > --- WEAPON ----------- Bore Cannon Bore Cannon Bore Cannon > --- INVENTORY -------- Carbon-fiber Leg Flexi-carbon Leg Flexi-carbon Leg Improved Energy Well Improved Sensor Array Weapon Cycler Improved Light Armor Plating Improved Shield Generator High-powered Shock Rifle Heavy Beamcaster AWS/Gauss Phasing Sabre Spear [Rating: 81] Favorites ----------- Power Reinforced Deuterium Engine Engine Reinforced Deuterium Engine Power Core Light Nuclear Core Propulsion Armored Treads Treads Armored Treads Leg Improved Aluminum Leg Utility Large Storage Unit Device Graphene Brace Storage Large Storage Unit Processor Improved Signal Interpreter Protection Improved Light Armor Plating Weapon AWS/Gauss Energy Gun Field Laser Ballistic Gun AWS/Gauss Ballistic Cannon Bore Cannon Launcher Grenade Launcher Slashing Weapon Phasing Sabre Piercing Weapon Spear Special Melee Weapon Datajack Build | -11 -10 -10 -10 -9 -8 -7 -6 -6 ------- Run | Yrd Mat Min Exi Min Mat Fac Fac Ext Slots Evolved 8 | . . . . . 4 2 2 . Power 1 | . . . . . . . 1 . Propulsion 2 | . . . . . 2 . . . Utility 4 | . . . . . 2 1 1 . Weapon 1 | . . . . . . 1 . . Parts Attached 82 | 7 14 4 2 2 13 6 4 30 Power 10 | 1 2 . . . 1 2 1 3 Engine 8 | 1 1 . . . 1 2 1 2 Core 2 | . 1 . . . . . . 1 Reactor . | . . . . . . . . . Propulsion 30 | 2 6 3 . 2 6 . 1 10 Treads 12 | 2 5 . . . 4 . 1 . Leg 18 | . 1 3 . 2 2 . . 10 Wheel . | . . . . . . . . . Hover . | . . . . . . . . . Flight . | . . . . . . . . . Utility 16 | 1 2 . 1 . 4 1 2 5 Device 6 | . . . . . 2 1 1 2 Storage 4 | 1 1 . 1 . . . . 1 Processor 4 | . 1 . . . 2 . 1 . Hackware . | . . . . . . . . . Protection 2 | . . . . . . . . 2 Artifact . | . . . . . . . . . Weapon 26 | 3 4 1 1 . 2 3 . 12 Energy Gun 4 | 1 . . . . . 1 . 2 Energy Cannon . | . . . . . . . . . Ballistic Gun 9 | 2 3 1 1 . 1 1 . . Ballistic Cannon 6 | . . . . . 1 1 . 4 Launcher 2 | . 1 . . . . . . 1 Special Weapon . | . . . . . . . . . Impact Weapon . | . . . . . . . . . Slashing Weapon 2 | . . . . . . . . 2 Piercing Weapon 1 | . . . . . . . . 1 Special Melee Weapon 2 | . . . . . . . . 2 Unidentified Prototypes 3 | . . . 1 . . 1 . 1 Parts Lost 25 | . 1 . . . 1 . . 23 Power 4 | . . . . . 1 . . 3 Propulsion 8 | . 1 . . . . . . 7 Utility 5 | . . . . . . . . 5 Weapon 8 | . . . . . . . . 8 Highest Loss Streak 16 | . 1 . . . 1 . . 16 To Critical Strikes . | . . . . . . . . . Average Slot Usage (%) 89 | . 79 88 91 85 78 91 92 94 Engine 7 | . 5 . . . . 7 13 10 Core 5 | . 8 14 14 14 7 . . 1 Treads 15 | . 16 10 . . 2 30 26 17 Leg 9 | . . 6 28 28 31 . . 7 Device 10 | . . . . . 7 15 19 14 Storage 10 | . 14 14 14 14 9 7 6 11 Processor 12 | . 7 14 14 14 10 15 13 13 Ballistic Gun 11 | . 22 14 14 14 8 8 13 5 Ballistic Cannon 2 | . . . . . . 3 . 6 Launcher 1 | . 4 14 6 . . . . . Naked Turns . | . . . . . . . . . Heaviest Build 85 | 12 14 14 35 35 46 53 66 85 Greatest Support 88 | 40 40 20 20 26 80 80 88 88 Greatest Overweight (x) 10 | . 3 1 1 1 1 . . 10 Average Overweight (x) . | . . . . 1 . . . . Largest Inventory Capacity 25 | 8 25 8 15 15 15 15 15 15 Average Capacity 13 | 6 8 8 9 15 15 15 15 15 Most Carried 15 | 5 8 8 8 7 13 12 10 15 Average Carried 8 | 2 3 8 6 6 8 8 6 11 Final Capacity 15 | 8 8 8 15 15 15 15 15 15 Final Carried 9 | . 8 8 5 7 9 8 9 8 Class Distribution -------------------- 44% | Scavenger-Skirmisher 35% | Scavenger-Mutant 14% | Mutant 5% | Commander-Mutant Dominant Class ---------------- Mutant | -10/Materials Mutant | -10/Mines Scavenger-Mutant | -10/Exiles Scavenger-Mutant | -9/Mines Scavenger-Mutant | -8/Materials Scavenger-Skirmisher | -7/Factory Scavenger-Skirmisher | -6/Factory Scavenger-Mutant | -6/Extension Resources | -11 -10 -10 -10 -9 -8 -7 -6 -6 ----------- Run | Yrd Mat Min Exi Min Mat Fac Fac Ext Matter Collected 1916 | 227 131 . . 192 222 30 161 953 Remotely 439 | . . . . . 90 30 161 158 Salvage Created 2224 | . 205 85 . 164 549 41 244 936 Parts 146 | . 12 11 . 8 40 4 13 58 Haulers Intercepted 2 | . 1 . . . . . 1 . Recyclers Shooed 1 | . . . . . 1 . . . Parts Field Recycled . | . . . . . . . . . Retrieved Matter . | . . . . . . . . . Parts Self-Destructed . | . . . . . . . . . Prevented . | . . . . . . . . . Kills | -11 -10 -10 -10 -9 -8 -7 -6 -6 ------- Run | Yrd Mat Min Exi Min Mat Fac Fac Ext Combat Hostiles Destroyed 48 | . 6 5 . 4 12 1 3 17 Melee 1 | . . . . . . . . 1 Guns 33 | . 6 1 . 4 9 1 3 9 Cannons 10 | . . . . . 3 . . 7 AOE 4 | . . 4 . . . . . . Classes Destroyed 13 | . 4 . . 1 2 1 1 4 Worker 1 | . . . . . . . . 1 Builder 3 | . . . . . . . . 3 Hauler 2 | . 1 . . . . . 1 . Watcher 4 | . 1 . . . 2 . . 1 Swarmer 13 | . 3 3 . . 3 . . 4 Grunt 20 | . 3 2 . 3 7 . 1 4 Brawler 1 | . . . . . 1 . . . Duelist 1 | . . . . 1 . . . . Sentry 6 | . . . . . . . 1 5 Specialist 1 | . . . . . . . . 1 Programmer 3 | . . . . . . 1 1 1 Heavy 1 | . . . . . 1 . . . Behemoth 1 | . . . . . . . . 1 Savage 1 | . . . . . . . . 1 Best Kill Streak 6 | . 2 5 . 3 6 1 2 4 Combat Bots Only 6 | . 2 5 . 3 6 1 1 4 Max Kills in Single Turn 3 | . 1 3 . 1 1 1 1 3 Gunslinging . | . . . . . . . . . Exploded 2 | . . 2 . . . . . . Melee 1 | . . . . . . . . 1 Uniques/NPCs Destroyed . | . . . . . . . . . Combat | -11 -10 -10 -10 -9 -8 -7 -6 -6 -------- Run | Yrd Mat Min Exi Min Mat Fac Fac Ext Hostile Shots Fired 618 | . 42 6 . 1 52 4 13 500 Missed 181 | . 10 3 . . 22 1 4 141 Damage Taken 5294 | . 351 51 . 10 517 43 69 4253 Core 1016 | . 44 3 . . 118 . . 851 Absorbed by Shields 867 | . . . . . . . 27 840 Core Remaining (%) 89 | 100 . . . 81 78 100 . . Volleys Fired 117 | . 22 4 . . 13 . . 78 Largest 3 | . 2 2 . . 1 . . 3 Hottest 171 | . 50 50 . . 44 . . 171 Shots Fired 284 | . 44 8 . 9 58 7 16 142 Gun 199 | . 42 4 . 9 45 7 16 76 Cannon 78 | . . . . . 13 . . 65 Launcher 7 | . 2 4 . . . . . 1 Special . | . . . . . . . . . Kinetic 263 | . 42 4 . 9 58 7 16 127 Thermal 8 | . . . . . . . . 8 Explosive 7 | . 2 4 . . . . . 1 Electromagnetic 6 | . . . . . . . . 6 Robot Hit Streak 20 | . 6 7 . 5 15 13 9 20 Robot Miss Streak 7 | . 3 2 . 1 6 . 2 7 Penetration Max 2 | . . . . 2 . . . 1 Secondary Targets 1 | . 1 . . . . . . . Max Gunslinging Chain 1 | . 1 . . . . . . . Autonomous 105 | . . . . 9 45 7 16 28 Shots Hit Robots 237 | . 27 4 . 8 50 7 12 129 Core Hits 112 | . 17 8 . 4 32 1 7 43 Critical Kills 5 | . . . . . . . 1 4 Critical Parts Destroyed 11 | . . . . . . . . 11 Critical Strikes 27 | . . . . . . . 1 26 Destroy 19 | . . . . . . . 1 18 Sever 8 | . . . . . . . . 8 Melee Attacks 46 | . . . . . . . . 46 Impact . | . . . . . . . . . Slashing 28 | . . . . . . . . 28 Piercing . | . . . . . . . . . Sneak Attacks 19 | . . . . . . . . 19 Combat Hostiles . | . . . . . . . . . Follow-up Attacks . | . . . . . . . . . Damage Inflicted 6564 | . 271 208 . 310 1353 238 364 3820 Guns 3883 | . 197 27 . 310 1115 238 359 1637 Cannons 1067 | . . . . . 222 . . 845 Explosions 391 | . 64 175 . . . . . 152 Melee 1104 | . . . . . . . . 1104 Ramming 119 | . 10 6 . . 16 . 5 82 Kinetic 4671 | . 197 27 . 310 1337 238 359 2203 Thermal 302 | . . . . . . . . 302 Explosive 257 | . 64 175 . . . . . 18 Electromagnetic 99 | . . . . . . . . 99 Impact 12 | . . . . . . . . 12 Slashing 1104 | . . . . . . . . 1104 Piercing . | . . . . . . . . . Highest Corruption 4 | . . . . . . . 2 4 Average Corruption 2 | . . . . . . . 1 2 Corruption Purged . | . . . . . . . . . Corruption Blocked . | . . . . . . . . . Effects 32 | . . . . . . . . 32 Message Errors 10 | . . . . . . . . 10 Matter Fused 3 | . . . . . . . . 3 Heat Flow Errors 3 | . . . . . . . . 3 Energy Discharges 6 | . . . . . . . . 6 Data Loss (minor) 3 | . . . . . . . . 3 Misfires 4 | . . . . . . . . 4 Alerts 2 | . . . . . . . . 2 Weapon Failures 1 | . . . . . . . . 1 Overload Shots . | . . . . . . . . . Overflow Damage 92 | . . . . . . . . 92 Projectiles 18 | . . . . . . . . 18 Explosions 11 | . . . . . . . . 11 Melee 63 | . . . . . . . . 63 Knockbacks 13 | . . . . . 5 . . 8 Impact 1 | . . . . . . . . 1 Kinetic 12 | . . . . . 5 . . 7 Secondary . | . . . . . . . . . Self-Inflicted Damage 61 | . 17 10 . . . . . 34 Shots 3 | . 1 1 . . . . . 1 Rammed 9 | . 4 3 . . . . 1 1 Targets Rammed 16 | . 4 3 . . 3 . 1 5 Kicked 5 | . . . . . 3 . . 2 Crushed 2 | . . . . . . . . 2 Highest Temperature 309 | . 14 28 . . 35 . . 309 Average Temperature 85 | . 7 14 . . 14 . . 102 Received Heat Transfer 1367 | . 114 18 . 6 252 . 12 965 Effects 3 | . . . . . . . . 3 Interference 3 | . . . . . . . . 3 Siege Activations . | . . . . . . . . . Robots Corrupted . | . . . . . . . . . Combat Hostiles . | . . . . . . . . . Parts Fried 3 | . . . . . . . . 3 Impact Corruptions . | . . . . . . . . . Robots Melted . | . . . . . . . . . Combat Hostiles . | . . . . . . . . . Parts Melted . | . . . . . . . . . Heat Transferred 409 | . . . . . . . . 409 Parts Sabotaged . | . . . . . . . . . Parts Stolen . | . . . . . . . . . Parts Stripped . | . . . . . . . . . Power Chain Reactions . | . . . . . . . . . Alert | -11 -10 -10 -10 -9 -8 -7 -6 -6 ------- Run | Yrd Mat Min Exi Min Mat Fac Fac Ext Peak Influence 722 | . 166 196 . 158 343 120 79 722 Initial 64 | . . 31 . . . 64 . 38 Average 128 | . 53 89 . 67 76 74 27 275 Maximum Alert Level 3 | . . . . . 1 . . 3 Low Security (%) 84 | 100 100 100 . 100 93 100 100 54 Level 1 5 | . . . . . 6 . . 14 Level 2 9 | . . . . . . . . 28 Level 3 . | . . . . . . . . 2 Level 4 . | . . . . . . . . . Level 5 . | . . . . . . . . . High Security . | . . . . . . . . . Max Security . | . . . . . . . . . Squads Dispatched 7 | . . . . . 2 1 1 3 Investigation 1 | . . . . . 1 . . . Extermination 2 | . . . . . . 1 1 . Reinforcement 1 | . . . . . 1 . . . Assault 3 | . . . . . . . . 3 Garrison . | . . . . . . . . . Intercept . | . . . . . . . . . Searches Triggered . | . . . . . . . . . Construction Impeded . | . . . . . . . . . Haulers Reinforced . | . . . . . . . . . Active Scanning Responses . | . . . . . . . . . Cargo Convoy Interrupts . | . . . . . . . . . Stealth | -11 -10 -10 -10 -9 -8 -7 -6 -6 --------- Run | Yrd Mat Min Exi Min Mat Fac Fac Ext Distress Signals 4 | . 3 . . . 1 . . . Communications Jammed . | . . . . . . . . . Distress Signals . | . . . . . . . . . Times Spotted 93 | . 13 3 . 4 14 1 4 54 Peak Tracking Total 11 | . 6 5 . 2 5 1 2 11 Tactical Retreats 5 | . 2 . . . . . . 3 Traps | -11 -10 -10 -10 -9 -8 -7 -6 -6 ------- Run | Yrd Mat Min Exi Min Mat Fac Fac Ext Traps Triggered 7 | . 4 . . . 2 . 1 . Indirectly . | . . . . . . . . . Trap Hack Attempts . | . . . . . . . . . Triggered . | . . . . . . . . . Disarmed . | . . . . . . . . . Reprogrammed . | . . . . . . . . . Reused . | . . . . . . . . . Traps Extracted . | . . . . . . . . . Installed . | . . . . . . . . . Triggered . | . . . . . . . . . Machines | -11 -10 -10 -10 -9 -8 -7 -6 -6 ---------- Run | Yrd Mat Min Exi Min Mat Fac Fac Ext Machines Disabled 9 | . 2 1 . . . . 2 4 Max in Single Turn 2 | . 1 1 . . . . 1 2 Energy Cycler 1 | . . . . . . . . 1 Machines Repaired . | . . . . . . . . . Machines Dismantled . | . . . . . . . . . Machines Sabotaged . | . . . . . . . . . Overloaded Fab Kills . | . . . . . . . . . Hacking | -11 -10 -10 -10 -9 -8 -7 -6 -6 --------- Run | Yrd Mat Min Exi Min Mat Fac Fac Ext Machines Accessed 7 | . 2 . . . 1 2 2 . Terminals 5 | . 2 . . . . 2 1 . Fabricators 1 | . . . . . . . 1 . Repair Stations . | . . . . . . . . . Recycling Units 1 | . . . . . 1 . . . Scanalyzers . | . . . . . . . . . Garrison Access . | . . . . . . . . . Total Hacks 14 | . 7 . . . 1 4 2 . Successful 7 | . 3 . . . 1 1 2 . Failed 7 | . 4 . . . . 3 . . Catastrophic 3 | . 2 . . . . 1 . . Database Lockouts . | . . . . . . . . . Manual 1 | . . . 1 . . . . . Terminals 12 | . 7 . . . . 4 1 . Fabricators 1 | . . . . . . . 1 . Repair Stations . | . . . . . . . . . Recycling Units 1 | . . . . . 1 . . . Scanalyzers . | . . . . . . . . . Garrison Access . | . . . . . . . . . Terminal Hacks 5 | . 3 . . . . 1 1 . Open Door 1 | . . . . . . . 1 . Locate Traps 1 | . 1 . . . . . . . Dispatch Records 1 | . 1 . . . . . . . Zone Layout 2 | . 1 . . . . 1 . . Fabricator Hacks 1 | . . . . . . . 1 . Network Status 1 | . . . . . . . 1 . Repair Station Hacks . | . . . . . . . . . Recycling Unit Hacks 1 | . . . . . 1 . . . Report Inventory 1 | . . . . . 1 . . . Scanalyzer . | . . . . . . . . . Garrison Access Hacks . | . . . . . . . . . Unauthorized Hacks . | . . . . . . . . . Terminals . | . . . . . . . . . Fabricators . | . . . . . . . . . Repair Stations . | . . . . . . . . . Recycling Units . | . . . . . . . . . Scanalyzers . | . . . . . . . . . Garrison Access . | . . . . . . . . . Data Cores Recovered . | . . . . . . . . . Used . | . . . . . . . . . Hacking Detections 3 | . 1 . . . . 2 . . Full Trace Events 1 | . 1 . . . . . . . Feedback Events . | . . . . . . . . . Feedback Blocked . | . . . . . . . . . Robot Schematics Acquired . | . . . . . . . . . Robots Built . | . . . . . . . . . Authchips . | . . . . . . . . . Time . | . . . . . . . . . Total Robot Build Rating . | . . . . . . . . . Part Schematics Acquired . | . . . . . . . . . Parts Built . | . . . . . . . . . Authchips . | . . . . . . . . . Time . | . . . . . . . . . Total Part Build Rating . | . . . . . . . . . Parts Repaired . | . . . . . . . . . Time . | . . . . . . . . . Parts Recycled . | . . . . . . . . . Recycled Matter . | . . . . . . . . . Retrieved Matter . | . . . . . . . . . Retrieved Components . | . . . . . . . . . Parts Scanalyzed . | . . . . . . . . . Part Schematics Acquired . | . . . . . . . . . Parts Damaged . | . . . . . . . . . Bothacking | -11 -10 -10 -10 -9 -8 -7 -6 -6 ------------ Run | Yrd Mat Min Exi Min Mat Fac Fac Ext Used RIF Installer . | . . . . . . . . . Robots Hacked . | . . . . . . . . . Non-combat . | . . . . . . . . . Combat . | . . . . . . . . . Robot Hacks Applied . | . . . . . . . . . Relay Couplers Released . | . . . . . . . . . Fabnet Peak Effective % . | . . . . . . . . . Robots Rewired 10 | . . . . . . . . 10 Allies Hacked . | . . . . . . . . . Hacks Repelled . | . . . . . . . . . Allies | -11 -10 -10 -10 -9 -8 -7 -6 -6 -------- Run | Yrd Mat Min Exi Min Mat Fac Fac Ext Total Allies 14 | . . 3 . . . . . 11 Largest Group 7 | . . 3 3 3 3 . . 7 Highest-Rated Group 350 | . . 40 40 40 40 . . 350 Highest-Rated Ally 159 | . . 16 16 16 16 . . 159 Total Orders . | . . . . . . . . . Ally Attacks 186 | . . . . 13 14 . . 159 Total Damage 3456 | . . . . 133 102 . . 3221 Kills 29 | . . . . 1 1 . . 27 Allies Corrupted . | . . . . . . . . . Allies Melted . | . . . . . . . . . Intel | -11 -10 -10 -10 -9 -8 -7 -6 -6 ------- Run | Yrd Mat Min Exi Min Mat Fac Fac Ext Robot Analysis Total . | . . . . . . . . . Derelict Logs Recovered . | . . . . . . . . . Drone Launches . | . . . . . . . . . Drone Recoveries . | . . . . . . . . . Exploration | -11 -10 -10 -10 -9 -8 -7 -6 -6 ------------- Run | Yrd Mat Min Exi Min Mat Fac Fac Ext Turns Passed 5942 | 68 632 236 416 617 439 540 1144 1850 Spaces Moved 3070 | 43 293 145 312 312 281 250 515 919 Core 92 | 12 79 . . . . . . 1 Treads 1768 | 31 214 97 . . 21 250 515 640 Legs 1210 | . . 48 312 312 260 . . 278 Wheels . | . . . . . . . . . Hover . | . . . . . . . . . Flight . | . . . . . . . . . Fastest Speed 50 | 50 160 120 120 190 120 167 167 120 Average Speed 158 | 129 170 147 131 190 126 167 167 158 Slowest Speed 550 | 160 200 190 190 190 190 167 167 550 Overloaded Moves . | . . . . . . . . . Propulsion Burnouts . | . . . . . . . . . Robots Hopped . | . . . . . . . . . Cave-ins Triggered . | . . . . . . . . . Exploration Rate (%) 28 | 3 36 28 64 33 24 4 9 54 Regions Visited 8 Branch Regions 4 Pre-discovered Areas 1 | . . . . 1 . . . . Known Exits Taken 7 | . 1 1 1 1 1 1 1 . Unknown Exits Taken 1 | 1 . . . . . . . . Scrap Searched 1 | . . . . 1 . . . . Spaces Dug 2 | . . . . . . . . 2 Terrain Destroyed 119 | . 5 15 . 5 31 4 7 52 Melee . | . . . . . . . . . Projectile 84 | . . . . 5 31 4 7 37 AOE 35 | . 5 15 . . . . . 15 Terrain Rammed . | . . . . . . . . . Walls Destroyed . | . . . . . . . . . Machines Disabled . | . . . . . . . . . Actions | -11 -10 -10 -10 -9 -8 -7 -6 -6 --------- Run | Yrd Mat Min Exi Min Mat Fac Fac Ext Total 3944 | 55 387 158 320 336 357 373 798 1160 Wait 485 | . 27 . . 19 23 106 271 39 Move 3062 | 42 292 144 311 311 280 249 514 919 Hop . | . . . . . . . . . Pick Up 85 | 5 22 . 1 3 15 7 6 26 Fast Attach 5 | 2 . 2 . . . . . 1 Attach 56 | 5 11 . 1 . 13 2 2 22 Detach 6 | . 1 . 1 . 2 . . 2 Swap 21 | . 3 2 1 2 . 4 2 7 Drop 45 | 1 5 3 5 1 8 5 2 15 Fire 117 | . 22 4 . . 13 . . 78 Melee 46 | . . . . . . . . 46 Ram 3 | . 3 . . . . . . . Kick 5 | . . . . . 3 . . 2 Crush 8 | . 1 3 . . . . 1 3 Escape Stasis . | . . . . . . . . . Rewire . | . . . . . . . . . Trap . | . . . . . . . . . Miscellaneous . | . . . . . . . . . Route ------- -11/Scrapyard -10/Materials -10/Mines -10/Exiles -9/Mines -8/Materials -7/Factory -6/Factory -6/Extension (discovered 1 exit: [*Fac]) History --------- Turn | Location | Event 8 | -11/Scrapyard | Discovered new exit (range 16) 69 | -11/Scrapyard | Entered Materials 358 | -10/Materials | Build established: Mutant 498 | -10/Materials | Discovered new exit (range 16) 699 | -10/Materials | Identified exit to Mines 701 | -10/Materials | Entered Mines 713 | -10/Mines | Assisted by bots powering up and referring to "LRC-V3" 930 | -10/Mines | Deemed a non-threat by the Exiles lab entrance 931 | -10/Mines | Discovered new exit (range 5) 936 | -10/Mines | Identified exit to Exiles 937 | -10/Mines | Entered Exiles 937 | -10/Exiles | Accompanied by 3 allies 981 | -10/Exiles | Met 8R-AWN 1006 | -10/Exiles | Met EX-HEX 1062 | -10/Exiles | Met EX-BIN 1078 | -10/Exiles | Aligned with FarCom system 1079 | -10/Exiles | Given EX-Vault access code 1107 | -10/Exiles | Opened EX-Vault 1113 | -10/Exiles | Found Prototype Ballistic Gun 1115 | -10/Exiles | Identified AWS/Gauss 1139 | -10/Exiles | Warned to stay clear of 0b10 Research branches 1155 | -10/Exiles | Build established: Scavenger-Mutant 1180 | -10/Exiles | Met EX-DEC 1317 | -10/Exiles | Discovered new exit (range 14) 1351 | -10/Exiles | Identified exit to Mines 1353 | -10/Exiles | Left Exiles lab with AWS/Gauss 1353 | -10/Exiles | Entered Mines 1353 | -9/Mines | Accompanied by 3 allies 1354 | -9/Mines | Met a Derelict bent on vengeance 1433 | -9/Mines | Learned location of Storage (-9) 1917 | -9/Mines | Discovered new exit (range 3) 1922 | -9/Mines | Identified exit to Materials 1970 | -9/Mines | Entered Materials 1970 | -8/Materials | Accompanied by 3 allies 1970 | -8/Materials | Evolved 4 slots: Propulsion x2, Utility x2 2330 | -8/Materials | Discovered new exit (range 17) 2407 | -8/Materials | Identified exit to Factory 2409 | -8/Materials | Entered Factory 2409 | -7/Factory | Evolved 2 slots: Utility x1, Weapon x1 2706 | -7/Factory | Build established: Scavenger-Skirmisher 2917 | -7/Factory | Discovered new exit (range 18) 2947 | -7/Factory | Identified exit to Factory 2949 | -7/Factory | Entered another Factory area 2949 | -6/Factory | Evolved 2 slots: Power x1, Utility x1 4071 | -6/Factory | Discovered new exit (range 5) 4074 | -6/Factory | Identified exit to Extension 4093 | -6/Factory | Entered Extension 4413 | -6/Extension | Spotted B-75 Beast 4793 | -6/Extension | Disrupted transfer network 5000 | -6/Extension | Lost 4 allies 5087 | -6/Extension | Build established: Scavenger-Mutant 5092 | -6/Extension | Energy Cycler disabled 5092 | -6/Extension | Rescued a captive Derelict 5092 | -6/Extension | Rescued a captive Derelict 5092 | -6/Extension | Rescued a captive Derelict 5092 | -6/Extension | Rescued a captive Derelict 5093 | -6/Extension | Rescued a captive Derelict 5094 | -6/Extension | Rescued A7 5097 | -6/Extension | Rescued a captive Derelict 5097 | -6/Extension | Rescued a captive Derelict 5101 | -6/Extension | Rescued a captive Derelict 5103 | -6/Extension | Rescued a captive Derelict 5493 | -6/Extension | First assault squad dispatched 5651 | -6/Extension | Build established: Commander-Mutant 5779 | -6/Extension | Lost 4 parts (1p1u2w) 5793 | -6/Extension | Lost 3 allies 5829 | -6/Extension | Spotted B-75 Beast 5859 | -6/Extension | Discovered new exit (range 19) 5863 | -6/Extension | Destroyed B-75 Beast 5922 | -6/Extension | Core integrity fell below 50% 5942 | -6/Extension | Core integrity fell below 20% 5943 | -6/Extension | Destroyed by G-67 Veteran with Plasma Rifle Last Messages --------------- 05919_ G-67 Veteran unfolds itself. 05919_ L-41 Fighter unfolds itself. 05919_ G-50 Soldier unfolds itself. 05919_ L-41 Fighter unfolds itself. 05919_ I-36 Angel unfolds itself. 05921_ Acquired Med. Reflective Plating. 05923_ Acquired Lyr. Medium Armor Plating. 05925_ Acquired 4 matter. 05926_ C-30 ARC bursts open, deploying its payload. 05926_ G-67 Veteran unfolds itself. 05926_ G-50 Soldier unfolds itself. 05926_ I-36 Angel unfolds itself. 05928_ Acquired Magnetic Acceleration Cannon. 05929_ System corrupted: Heat flow error (+178). 05930_ Flexi-carbon Leg destroyed. 05931_ Hpw. Shock Rifle destroyed. 05932_ Arm. Leg destroyed. 05937_ Flexi-carbon Leg destroyed. 05937_ Magnetic Acceleration Cannon destroyed. 05940_ Lyr. Medium Armor Plating destroyed. Map ----- +----------------------------------------------------+ | ### ###?????# % #?????????????????????????????? | | ###% %#?????# *[% #?????????????????????????????? | | %%*% #?????# *=%#?????????????????????????????? | | ###= #?????# *=% !########??????????????????????? | | #="# ##?????# %/!!+ #??????????????????????? | | ## #??###?# %!# #??????????????????????? | | #### ####%######+### ##?????????????????????? | | #??#!%*!!=*% !% "##????????????????????? | | ####+#####!=[!*[%##### T#????????????????????? | | #=== ===#???# ""#????????????????????? | | !! +%% !!%#???# ###????????????????????? | | ! !#######+###?# #??????????????????????? | | #?????#]%=#?# #??????????????????????? | | ##########?????#!!%#?#/ %#??????????????????????? | | ???????????????#!!*#?#%[**#??????????????????????? | | ???????????????# ! ### !!%#??????????????????????? | | ???????????????#% + !!%% #??????????????????????? | | ???????????????# !###*##!#??????????????????????? | | ???????????????# #?# ##*#????##????????????????? | | ???????????????# #?##[#=##??# #????????????????? | | ???????????????#= !#???##%%### #?????????????????? | | ???????????????#####??###[#=# #??????????????????? | | ??????????????????????#%#%#! #???????????????????? | | ?????????????????????## # #!#????????????????????? | | ?????????????????????#!;#*%## ## ###%#???????????? | | ?????????????????????#= @ " " "#?????????? | | ?????????????????????##BBllg R" #?????????? | | ??????????????????????#BB%[% %R #?????????? | | ??????????????????????#=!ggg R % #?????????? | | #######################! * g % #?????????? | | gii ??????? | | ????? | | ????? | | ?????? | | t u u%R % ????? | | #####################;# ! #####?????? | | ????????????????????# # #?????????? | | ????????????????????### % #?????????? | | ??????????????????????# #?????????? | | ??????????????????????# #?????????? | | ??????????????????????###### # #######?????????? | | ????????????????????????????## < #???????????????? | | ??????????????????????????????####???????????????? | | | | | | | | | | | | | | | +----------------------------------------------------+ Best States ------------- Heat Dissipation 37 Energy Generation 30 Energy Capacity 905 Matter Stores 300 Matter Capacity 300 Sight Range 22 Robot Scan Range 14 Terrain Scan Density 10 Armor Coverage 225 Evasion (%) 55 Recoil Reduction 4 Item Schematics ----------------- None Robot Schematics ------------------ None Fabricated ------------ Nothing Alien Tech Used ----------------- None Achievements -------------- Prison Break Challenges ------------ None Game ------ Seed BladeSwordBlaster Manual? 0 Play Time 00:58:47 Cumulative 39.6 hours Start 2024.07.09 @ 13:10:10 End 2024.07.09 @ 14:26:28 Sessions 1 Manual Loads 0 Difficulty Rogue Special Mode None Game No. 113 Rogue 113 Adventurer 0 Explorer 0 Win Type - Total 0 Types 0/0/0/0/0/0/0/0/0 Lore% 18 Gallery% 36 Achievement% 24 Wizard Run 0 Options --------- Layout 0 ASCII 0 Keyboard 0 Movement Arrows Keybinds 0 Fullscreen 1 Font 12/Smallcaps Map View 38x28 Zoom Use 90% Tactical HUD 1 Map Filters NONE Filters NONE Steam SD RUN: 3ddaac4b-e988-44bb-9583-3c999a37538e